Department family,Entity,Date,Expense type,Expense area,Supplier,Transaction number,Amount
Department of Health,Leicestershire Partnership NHS Trust,02/05/19,Unitary Payment,"The Agnes Unit (AKA Assessment and Treatment Centre) (P85, LPT)",ARDEN PARTNERSHIP (LEICESTER),SI0027,113194.97
Department of Health,Leicestershire Partnership NHS Trust,02/05/19,BOUGHT IN GPs,Stewart House,THE LIMES MEDICAL CTR,52,45332.00
Department of Health,Leicestershire Partnership NHS Trust,02/05/19,External Data Processing / Storage,Records & information Governance,C & V DATA MANAGEMENT SRV LTD,0067890,29082.12
Department of Health,Leicestershire Partnership NHS Trust,07/05/19,Crs_NHS_LT1y -Resus Inventory Supplied.,Balance Sheet Collection,SUPPLY CHAIN CO LTD,1010022561,58323.18
Department of Health,Leicestershire Partnership NHS Trust,07/05/19,NURSE - BAND 2 - AGENCY,Beechwood Ward,HCL NURSING,MAN29760,223.60
Department of Health,Leicestershire Partnership NHS Trust,07/05/19,NURSE - BAND 5 - AGENCY,Beechwood Ward,HCL NURSING,MAN29760,1434.08
Department of Health,Leicestershire Partnership NHS Trust,07/05/19,NURSE - BAND 5 - AGENCY,City ICS,HCL NURSING,MAN29760,3269.85
Department of Health,Leicestershire Partnership NHS Trust,07/05/19,NURSE - BAND 5 - AGENCY,City Planned Care - East,HCL NURSING,MAN29760,19583.11
Department of Health,Leicestershire Partnership NHS Trust,07/05/19,NURSE - BAND 5 - AGENCY,City Planned Care - West,HCL NURSING,MAN29760,4580.54
Department of Health,Leicestershire Partnership NHS Trust,07/05/19,Nurse - Band 6 -Agency,City West CMHT MHSOP,HCL NURSING,MAN29760,1234.06
Department of Health,Leicestershire Partnership NHS Trust,07/05/19,NURSE - BAND 2 - AGENCY,Clarendon Ward,HCL NURSING,MAN29760,854.25
Department of Health,Leicestershire Partnership NHS Trust,07/05/19,NURSE - BAND 5 - AGENCY,Clarendon Ward,HCL NURSING,MAN29760,2180.43
Department of Health,Leicestershire Partnership NHS Trust,07/05/19,NURSE - BAND 2 - AGENCY,Coalville Ward 2,HCL NURSING,MAN29760,881.89
Department of Health,Leicestershire Partnership NHS Trust,07/05/19,NURSE - BAND 2 - AGENCY,Coleman Ward,HCL NURSING,MAN29760,182.01
Department of Health,Leicestershire Partnership NHS Trust,07/05/19,NURSE - BAND 5 - AGENCY,Dalgliesh Ward,HCL NURSING,MAN29760,386.06
Department of Health,Leicestershire Partnership NHS Trust,07/05/19,NURSE - BAND 3 - AGENCY,East Planned Care - Blaby/Lutterworth,HCL NURSING,MAN29760,716.25
Department of Health,Leicestershire Partnership NHS Trust,07/05/19,NURSE - BAND 5 - AGENCY,Evening Service,HCL NURSING,MAN29760,661.86
Department of Health,Leicestershire Partnership NHS Trust,07/05/19,NURSE - BAND 5 - AGENCY,Fielding Palmer Nursing,HCL NURSING,MAN29760,1274.62
Department of Health,Leicestershire Partnership NHS Trust,07/05/19,NURSE - BAND 2 - AGENCY,Gwendolen Ward,HCL NURSING,MAN29760,180.22
Department of Health,Leicestershire Partnership NHS Trust,07/05/19,NURSE - BAND 2 - AGENCY,H&B Comm Hosp East Ward,HCL NURSING,MAN29760,1670.45
Department of Health,Leicestershire Partnership NHS Trust,07/05/19,NURSE - BAND 5 - AGENCY,H&B Comm Hosp East Ward,HCL NURSING,MAN29760,886.12
Department of Health,Leicestershire Partnership NHS Trust,07/05/19,NURSE - BAND 2 - AGENCY,H&B Comm Hosp North Ward,HCL NURSING,MAN29760,423.87
Department of Health,Leicestershire Partnership NHS Trust,07/05/19,NURSE - BAND 5 - AGENCY,H&B Comm Hosp North Ward,HCL NURSING,MAN29760,1497.29
Department of Health,Leicestershire Partnership NHS Trust,07/05/19,NURSE - BAND 2 - AGENCY,Kirby Ward,HCL NURSING,MAN29760,1356.95
Department of Health,Leicestershire Partnership NHS Trust,07/05/19,Nurse - Band 6 -Agency,MHSOP Integrated Care Team,HCL NURSING,MAN29760,1883.09
Department of Health,Leicestershire Partnership NHS Trust,07/05/19,NURSE - BAND 5 - AGENCY,North West ICS,HCL NURSING,MAN29760,287.98
Department of Health,Leicestershire Partnership NHS Trust,07/05/19,NURSE - BAND 2 - AGENCY,Rutland Ward Nursing,HCL NURSING,MAN29760,254.97
Department of Health,Leicestershire Partnership NHS Trust,07/05/19,NURSE - BAND 5 - AGENCY,South East ICS,HCL NURSING,MAN29760,3539.01
Department of Health,Leicestershire Partnership NHS Trust,07/05/19,NURSE - BAND 2 - AGENCY,St Lukes Stroke Ward,HCL NURSING,MAN29760,325.70
Department of Health,Leicestershire Partnership NHS Trust,07/05/19,NURSE - BAND 5 - AGENCY,St Lukes Ward 3,HCL NURSING,MAN29760,1551.54
Department of Health,Leicestershire Partnership NHS Trust,07/05/19,NURSE - BAND 2 - AGENCY,Welford Ward,HCL NURSING,MAN29760,588.70
Department of Health,Leicestershire Partnership NHS Trust,07/05/19,NURSE - BAND 5 - AGENCY,West Planned Care  - Charnwood Hub,HCL NURSING,MAN29760,1580.39
Department of Health,Leicestershire Partnership NHS Trust,07/05/19,NURSE - BAND 5 - AGENCY,West Planned Care - NWL Hub,HCL NURSING,MAN29760,507.55
Department of Health,Leicestershire Partnership NHS Trust,07/05/19,Computer Maintenance,Finance Department,SOFTWARE BOX LTD,0006874,-30347.99
Department of Health,Leicestershire Partnership NHS Trust,07/05/19,NURSE - BAND 2 - AGENCY,Beechwood Ward,HCL NURSING,MAN29787,246.57
Department of Health,Leicestershire Partnership NHS Trust,07/05/19,NURSE - BAND 5 - AGENCY,Beechwood Ward,HCL NURSING,MAN29787,380.52
Department of Health,Leicestershire Partnership NHS Trust,07/05/19,NURSE - BAND 5 - AGENCY,City ICS,HCL NURSING,MAN29787,794.88
Department of Health,Leicestershire Partnership NHS Trust,07/05/19,NURSE - BAND 5 - AGENCY,City Planned Care - East,HCL NURSING,MAN29787,19906.21
Department of Health,Leicestershire Partnership NHS Trust,07/05/19,NURSE - BAND 5 - AGENCY,City Planned Care - West,HCL NURSING,MAN29787,5504.24
Department of Health,Leicestershire Partnership NHS Trust,07/05/19,Nurse - Band 6 -Agency,City West CMHT MHSOP,HCL NURSING,MAN29787,855.90
Department of Health,Leicestershire Partnership NHS Trust,07/05/19,NURSE - BAND 2 - AGENCY,Clarendon Ward,HCL NURSING,MAN29787,837.89
Department of Health,Leicestershire Partnership NHS Trust,07/05/19,NURSE - BAND 5 - AGENCY,Clarendon Ward,HCL NURSING,MAN29787,900.97
Department of Health,Leicestershire Partnership NHS Trust,07/05/19,NURSE - BAND 2 - AGENCY,Coalville Snibston Ward,HCL NURSING,MAN29787,106.77
Department of Health,Leicestershire Partnership NHS Trust,07/05/19,NURSE - BAND 2 - AGENCY,Coalville Ward 2,HCL NURSING,MAN29787,560.55
Department of Health,Leicestershire Partnership NHS Trust,07/05/19,NURSE - BAND 2 - AGENCY,Coleman Ward,HCL NURSING,MAN29787,194.67
Department of Health,Leicestershire Partnership NHS Trust,07/05/19,NURSE - BAND 5 - AGENCY,Dalgliesh Ward,HCL NURSING,MAN29787,386.06
Department of Health,Leicestershire Partnership NHS Trust,07/05/19,NURSE - BAND 3 - AGENCY,East Planned Care - Blaby/Lutterworth,HCL NURSING,MAN29787,537.12
Department of Health,Leicestershire Partnership NHS Trust,07/05/19,NURSE - BAND 5 - AGENCY,Evening Service,HCL NURSING,MAN29787,1880.05
Department of Health,Leicestershire Partnership NHS Trust,07/05/19,NURSE - BAND 5 - AGENCY,Fielding Palmer Nursing,HCL NURSING,MAN29787,2716.91
Department of Health,Leicestershire Partnership NHS Trust,07/05/19,NURSE - BAND 2 - AGENCY,H&B Comm Hosp East Ward,HCL NURSING,MAN29787,1175.54
Department of Health,Leicestershire Partnership NHS Trust,07/05/19,NURSE - BAND 5 - AGENCY,H&B Comm Hosp East Ward,HCL NURSING,MAN29787,996.89
Department of Health,Leicestershire Partnership NHS Trust,07/05/19,NURSE - BAND 2 - AGENCY,H&B Comm Hosp North Ward,HCL NURSING,MAN29787,2123.60
Department of Health,Leicestershire Partnership NHS Trust,07/05/19,NURSE - BAND 5 - AGENCY,H&B Comm Hosp North Ward,HCL NURSING,MAN29787,876.39
Department of Health,Leicestershire Partnership NHS Trust,07/05/19,NURSE - BAND 2 - AGENCY,Kirby Ward,HCL NURSING,MAN29787,1217.97
Department of Health,Leicestershire Partnership NHS Trust,07/05/19,NURSE - BAND 5 - AGENCY,Lough Swithland Ward,HCL NURSING,MAN29787,756.51
Department of Health,Leicestershire Partnership NHS Trust,07/05/19,NURSE - BAND 5 - AGENCY,North West ICS,HCL NURSING,MAN29787,1379.44
Department of Health,Leicestershire Partnership NHS Trust,07/05/19,NURSE - BAND 5 - AGENCY,South East ICS,HCL NURSING,MAN29787,4227.17
Department of Health,Leicestershire Partnership NHS Trust,07/05/19,NURSE - BAND 2 - AGENCY,St Lukes Stroke Ward,HCL NURSING,MAN29787,220.54
Department of Health,Leicestershire Partnership NHS Trust,07/05/19,NURSE - BAND 5 - AGENCY,St Lukes Stroke Ward,HCL NURSING,MAN29787,514.90
Department of Health,Leicestershire Partnership NHS Trust,07/05/19,NURSE - BAND 5 - AGENCY,St Lukes Ward 3,HCL NURSING,MAN29787,2460.76
Department of Health,Leicestershire Partnership NHS Trust,07/05/19,NURSE - BAND 2 - AGENCY,Welford Ward,HCL NURSING,MAN29787,1735.43
Department of Health,Leicestershire Partnership NHS Trust,07/05/19,NURSE - BAND 5 - AGENCY,West Planned Care  - Charnwood Hub,HCL NURSING,MAN29787,2200.20
Department of Health,Leicestershire Partnership NHS Trust,07/05/19,WIP Project Not in BS - Buildings excl Dwellings,Work in Progress,INTERSERVE CONSTRUCTION LTD,VEW55017,301577.54
Department of Health,Leicestershire Partnership NHS Trust,07/05/19,Occupational Health,HR Operations,UHL NHS TRUST (RWE),L0226622,26622.00
Department of Health,Leicestershire Partnership NHS Trust,07/05/19,Services / Recharges from NHS Trusts,Inter Unit I & E Distribution,UHL NHS TRUST (RWE),L0226628,176301.00
Department of Health,Leicestershire Partnership NHS Trust,07/05/19,Network Costs - WAN Maint,HIS Infrastructure,IVANTI UK LIMITED,90763323,38163.13
Department of Health,Leicestershire Partnership NHS Trust,08/05/19,Nurse - Band 6 -Agency,Adult City East CMHT - Merlyn Vaz,HCL NURSING,MAN29761,213.98
Department of Health,Leicestershire Partnership NHS Trust,08/05/19,Nurse - Band 6 -Agency,Adult County Charnwood CMHT - Loughborough Base,HCL NURSING,MAN29761,1069.88
Department of Health,Leicestershire Partnership NHS Trust,08/05/19,Nurse - Band 6 -Agency,Adult County North West Leicestershire CMHT,HCL NURSING,MAN29761,1286.52
Department of Health,Leicestershire Partnership NHS Trust,08/05/19,NURSE - BAND 2 - AGENCY,Agnes Unit Management,HCL NURSING,MAN29761,1762.24
Department of Health,Leicestershire Partnership NHS Trust,08/05/19,NURSE - BAND 5 - AGENCY,Agnes Unit Management,HCL NURSING,MAN29761,644.60
Department of Health,Leicestershire Partnership NHS Trust,08/05/19,NURSE - BAND 2 - AGENCY,Ashby Ward (Bradgate Unit),HCL NURSING,MAN29761,336.82
Department of Health,Leicestershire Partnership NHS Trust,08/05/19,NURSE - BAND 2 - AGENCY,Aston Ward (Bradgate Unit),HCL NURSING,MAN29761,205.70
Department of Health,Leicestershire Partnership NHS Trust,08/05/19,NURSE - BAND 5 - AGENCY,Aston Ward (Bradgate Unit),HCL NURSING,MAN29761,266.74
Department of Health,Leicestershire Partnership NHS Trust,08/05/19,NURSE - BAND 2 - AGENCY,Belvoir Psychiatric Intensive Care Unit,HCL NURSING,MAN29761,1678.39
Department of Health,Leicestershire Partnership NHS Trust,08/05/19,NURSE - BAND 5 - AGENCY,Belvoir Psychiatric Intensive Care Unit,HCL NURSING,MAN29761,988.60
Department of Health,Leicestershire Partnership NHS Trust,08/05/19,Nurse - Band 6 -Agency,Crisis Resolution,HCL NURSING,MAN29761,4087.09
Department of Health,Leicestershire Partnership NHS Trust,08/05/19,NURSE - BAND 2 - AGENCY,Griffin Ward (HPC),HCL NURSING,MAN29761,538.80
Department of Health,Leicestershire Partnership NHS Trust,08/05/19,NURSE - BAND 5 - AGENCY,Griffin Ward (HPC),HCL NURSING,MAN29761,4571.78
Department of Health,Leicestershire Partnership NHS Trust,08/05/19,NURSE - BAND 2 - AGENCY,Heather Ward,HCL NURSING,MAN29761,363.08
Department of Health,Leicestershire Partnership NHS Trust,08/05/19,NURSE - BAND 5 - AGENCY,Heather Ward,HCL NURSING,MAN29761,999.59
Department of Health,Leicestershire Partnership NHS Trust,08/05/19,Nurse - Band 6 -Agency,Leicestershire Psych-oncology Service,HCL NURSING,MAN29761,213.98
Department of Health,Leicestershire Partnership NHS Trust,08/05/19,Nurse - Band 6 -Agency,Mental Health Triage Team,HCL NURSING,MAN29761,2145.04
Department of Health,Leicestershire Partnership NHS Trust,08/05/19,NURSE - BAND 2 - AGENCY,Mill Lodge,HCL NURSING,MAN29761,214.57
Department of Health,Leicestershire Partnership NHS Trust,08/05/19,NURSE - BAND 2 - AGENCY,Phoenix Ward (HPC),HCL NURSING,MAN29761,432.50
Department of Health,Leicestershire Partnership NHS Trust,08/05/19,NURSE - BAND 5 - AGENCY,Phoenix Ward (HPC),HCL NURSING,MAN29761,343.33
Department of Health,Leicestershire Partnership NHS Trust,08/05/19,NURSE - BAND 2 - AGENCY,Watermead Ward (Bradgate Unit),HCL NURSING,MAN29761,220.43
Department of Health,Leicestershire Partnership NHS Trust,08/05/19,NURSE - BAND 5 - AGENCY,Watermead Ward (Bradgate Unit),HCL NURSING,MAN29761,715.99
Department of Health,Leicestershire Partnership NHS Trust,08/05/19,Nurse - Band 6 -Agency,Adult City East CMHT - Merlyn Vaz,HCL NURSING,MAN29786,1316.01
Department of Health,Leicestershire Partnership NHS Trust,08/05/19,Nurse - Band 6 -Agency,Adult County Charnwood CMHT - Loughborough Base,HCL NURSING,MAN29786,855.90
Department of Health,Leicestershire Partnership NHS Trust,08/05/19,Nurse - Band 6 -Agency,Adult County North West Leicestershire CMHT,HCL NURSING,MAN29786,213.98
Department of Health,Leicestershire Partnership NHS Trust,08/05/19,NURSE - BAND 2 - AGENCY,Agnes Unit Management,HCL NURSING,MAN29786,612.07
Department of Health,Leicestershire Partnership NHS Trust,08/05/19,NURSE - BAND 5 - AGENCY,Agnes Unit Management,HCL NURSING,MAN29786,1320.89
Department of Health,Leicestershire Partnership NHS Trust,08/05/19,NURSE - BAND 5 - AGENCY,Ashby Ward (Bradgate Unit),HCL NURSING,MAN29786,386.12
Department of Health,Leicestershire Partnership NHS Trust,08/05/19,NURSE - BAND 2 - AGENCY,Aston Ward (Bradgate Unit),HCL NURSING,MAN29786,254.98
Department of Health,Leicestershire Partnership NHS Trust,08/05/19,NURSE - BAND 5 - AGENCY,Aston Ward (Bradgate Unit),HCL NURSING,MAN29786,1045.74
Department of Health,Leicestershire Partnership NHS Trust,08/05/19,NURSE - BAND 2 - AGENCY,Beaumont Ward - Bradgate Unit,HCL NURSING,MAN29786,426.90
Department of Health,Leicestershire Partnership NHS Trust,08/05/19,NURSE - BAND 5 - AGENCY,Beaumont Ward - Bradgate Unit,HCL NURSING,MAN29786,1153.92
Department of Health,Leicestershire Partnership NHS Trust,08/05/19,NURSE - BAND 2 - AGENCY,Belvoir Psychiatric Intensive Care Unit,HCL NURSING,MAN29786,2906.58
Department of Health,Leicestershire Partnership NHS Trust,08/05/19,NURSE - BAND 5 - AGENCY,Belvoir Psychiatric Intensive Care Unit,HCL NURSING,MAN29786,1057.05
Department of Health,Leicestershire Partnership NHS Trust,08/05/19,NURSE - BAND 2 - AGENCY,Bosworth Ward - Bradgate Unit,HCL NURSING,MAN29786,211.24
Department of Health,Leicestershire Partnership NHS Trust,08/05/19,NURSE - BAND 2 - AGENCY,Cedar (Willows),HCL NURSING,MAN29786,102.08
Department of Health,Leicestershire Partnership NHS Trust,08/05/19,NURSE - BAND 2 - AGENCY,Griffin Ward (HPC),HCL NURSING,MAN29786,1675.34
Department of Health,Leicestershire Partnership NHS Trust,08/05/19,NURSE - BAND 5 - AGENCY,Griffin Ward (HPC),HCL NURSING,MAN29786,3358.53
Department of Health,Leicestershire Partnership NHS Trust,08/05/19,NURSE - BAND 5 - AGENCY,Heather Ward,HCL NURSING,MAN29786,1433.03
Department of Health,Leicestershire Partnership NHS Trust,08/05/19,Nurse - Band 6 -Agency,Leicestershire Psych-oncology Service,HCL NURSING,MAN29786,427.96
Department of Health,Leicestershire Partnership NHS Trust,08/05/19,Nurse - Band 6 -Agency,Mental Health Triage Team,HCL NURSING,MAN29786,2062.09
Department of Health,Leicestershire Partnership NHS Trust,08/05/19,NURSE - BAND 2 - AGENCY,Phoenix Ward (HPC),HCL NURSING,MAN29786,109.19
Department of Health,Leicestershire Partnership NHS Trust,08/05/19,NURSE - BAND 2 - AGENCY,Thornton Ward - Bradgate Unit,HCL NURSING,MAN29786,254.98
Department of Health,Leicestershire Partnership NHS Trust,08/05/19,NURSE - BAND 5 - AGENCY,Thornton Ward - Bradgate Unit,HCL NURSING,MAN29786,329.81
Department of Health,Leicestershire Partnership NHS Trust,08/05/19,NURSE - BAND 2 - AGENCY,Watermead Ward (Bradgate Unit),HCL NURSING,MAN29786,206.40
Department of Health,Leicestershire Partnership NHS Trust,08/05/19,NURSE - BAND 5 - AGENCY,Watermead Ward (Bradgate Unit),HCL NURSING,MAN29786,392.89
Department of Health,Leicestershire Partnership NHS Trust,08/05/19,Payroll Deductions -Salary Sacrifice Cars Scheme,Balance Sheet Collection,TUSKER,16539,36260.54
Department of Health,Leicestershire Partnership NHS Trust,08/05/19,HIS LPT Costs,HIS,THE PHOENIX PARTNERSHIP,9885,37824.00
Department of Health,Leicestershire Partnership NHS Trust,08/05/19,WIP Project Not in BS - Transport and Equipment,Work in Progress,MEDSTROM HEALTHCARE,0000034874,43320.00
Department of Health,Leicestershire Partnership NHS Trust,08/05/19,Landline Telephone Rental / Calls,"Beaumont Leys Health Centre (P94, LPT)",VIRGIN MEDIA BUSINESS,853083001/004/0419,391.12
Department of Health,Leicestershire Partnership NHS Trust,08/05/19,Landline Telephone Rental / Calls,Belgrave Health Centre (CHP),VIRGIN MEDIA BUSINESS,853083001/004/0419,388.00
Department of Health,Leicestershire Partnership NHS Trust,08/05/19,Landline Telephone Rental / Calls,"Bennion Centre (including Forest Grange Day Unit) (P8, LPT)",VIRGIN MEDIA BUSINESS,853083001/004/0419,7.74
Department of Health,Leicestershire Partnership NHS Trust,08/05/19,Landline Telephone Rental / Calls,"Bradgate Unit (including Glenvale day Unit) (P7, LPT)",VIRGIN MEDIA BUSINESS,853083001/004/0419,7663.44
Department of Health,Leicestershire Partnership NHS Trust,08/05/19,Landline Telephone Rental / Calls,Braunstone Health and Social Care Centre (Part) (PROPCO),VIRGIN MEDIA BUSINESS,853083001/004/0419,1238.58
Department of Health,Leicestershire Partnership NHS Trust,08/05/19,Landline Telephone Rental / Calls,Bridge Park Plaza - First Floor (LPT),VIRGIN MEDIA BUSINESS,853083001/004/0419,4416.59
Department of Health,Leicestershire Partnership NHS Trust,08/05/19,Landline Telephone Rental / Calls,"Coalville Community Hospital (P138, LPT)",VIRGIN MEDIA BUSINESS,853083001/004/0419,1478.57
Department of Health,Leicestershire Partnership NHS Trust,08/05/19,Landline Telephone Rental / Calls,"Coalville Health Centre (P121, LPT)",VIRGIN MEDIA BUSINESS,853083001/004/0419,375.44
Department of Health,Leicestershire Partnership NHS Trust,08/05/19,Landline Telephone Rental / Calls,County Hall,VIRGIN MEDIA BUSINESS,853083001/004/0419,1449.24
Department of Health,Leicestershire Partnership NHS Trust,08/05/19,Landline Telephone Rental / Calls,Estates & Facilities Central,VIRGIN MEDIA BUSINESS,853083001/004/0419,3988.00
Department of Health,Leicestershire Partnership NHS Trust,08/05/19,Landline Telephone Rental / Calls,"Evington Centre (P6, LPT)",VIRGIN MEDIA BUSINESS,853083001/004/0419,1581.25
Department of Health,Leicestershire Partnership NHS Trust,08/05/19,Landline Telephone Rental / Calls,HIS,VIRGIN MEDIA BUSINESS,853083001/004/0419,3092.81
Department of Health,Leicestershire Partnership NHS Trust,08/05/19,Landline Telephone Rental / Calls,"Hawthorne Centre - Coalville (P14, LPT)",VIRGIN MEDIA BUSINESS,853083001/004/0419,494.15
Department of Health,Leicestershire Partnership NHS Trust,08/05/19,Landline Telephone Rental / Calls,Hinckley & District Hospital (PROPCO),VIRGIN MEDIA BUSINESS,853083001/004/0419,1381.76
Department of Health,Leicestershire Partnership NHS Trust,08/05/19,Landline Telephone Rental / Calls,"Hinckley and Bosworth Community Hospital (Sunnyside) (P133, LPT)",VIRGIN MEDIA BUSINESS,853083001/004/0419,1087.77
Department of Health,Leicestershire Partnership NHS Trust,08/05/19,Landline Telephone Rental / Calls,Hood Park Leisure Centre Clinic,VIRGIN MEDIA BUSINESS,853083001/004/0419,88.73
Department of Health,Leicestershire Partnership NHS Trust,08/05/19,Landline Telephone Rental / Calls,"Hynca Lodge (P33, LPT)",VIRGIN MEDIA BUSINESS,853083001/004/0419,369.43
Department of Health,Leicestershire Partnership NHS Trust,08/05/19,Landline Telephone Rental / Calls,"Legion House, Ashby",VIRGIN MEDIA BUSINESS,853083001/004/0419,60.84
Department of Health,Leicestershire Partnership NHS Trust,08/05/19,Landline Telephone Rental / Calls,Loughborough Health Centre (PROPCO),VIRGIN MEDIA BUSINESS,853083001/004/0419,8.68
Department of Health,Leicestershire Partnership NHS Trust,08/05/19,Landline Telephone Rental / Calls,"Loughborough Hospital (P136, LPT)",VIRGIN MEDIA BUSINESS,853083001/004/0419,4575.14
Department of Health,Leicestershire Partnership NHS Trust,08/05/19,Landline Telephone Rental / Calls,Mawson House (LPT),VIRGIN MEDIA BUSINESS,853083001/004/0419,524.58
Department of Health,Leicestershire Partnership NHS Trust,08/05/19,Landline Telephone Rental / Calls,Melbourne Centre (Pt Grnd flr) (PROPCO),VIRGIN MEDIA BUSINESS,853083001/004/0419,6.45
Department of Health,Leicestershire Partnership NHS Trust,08/05/19,Landline Telephone Rental / Calls,Melton Mowbray Hospital (previously St. Mary's) (PROPCO),VIRGIN MEDIA BUSINESS,853083001/004/0419,1877.86
Department of Health,Leicestershire Partnership NHS Trust,08/05/19,Landline Telephone Rental / Calls,Merlyn Vaz Centre (CHP),VIRGIN MEDIA BUSINESS,853083001/004/0419,2153.13
Department of Health,Leicestershire Partnership NHS Trust,08/05/19,Landline Telephone Rental / Calls,"Mett Centre (P49, LPT)",VIRGIN MEDIA BUSINESS,853083001/004/0419,91.33
Department of Health,Leicestershire Partnership NHS Trust,08/05/19,Landline Telephone Rental / Calls,NSPCC Training Cente,VIRGIN MEDIA BUSINESS,853083001/004/0419,184.50
Department of Health,Leicestershire Partnership NHS Trust,08/05/19,Landline Telephone Rental / Calls,New Parks Health Centre (PROPCO),VIRGIN MEDIA BUSINESS,853083001/004/0419,1893.01
Department of Health,Leicestershire Partnership NHS Trust,08/05/19,Landline Telephone Rental / Calls,"OSL House (P54, LPT)",VIRGIN MEDIA BUSINESS,853083001/004/0419,3230.38
Department of Health,Leicestershire Partnership NHS Trust,08/05/19,Landline Telephone Rental / Calls,"Orchard Resource Centre (P15, LPT)",VIRGIN MEDIA BUSINESS,853083001/004/0419,555.02
Department of Health,Leicestershire Partnership NHS Trust,08/05/19,Landline Telephone Rental / Calls,Pasley Road Health Centre (PROPCO),VIRGIN MEDIA BUSINESS,853083001/004/0419,245.86
Department of Health,Leicestershire Partnership NHS Trust,08/05/19,Landline Telephone Rental / Calls,"Prince Philip House (P96, LPT)",VIRGIN MEDIA BUSINESS,853083001/004/0419,1637.60
Department of Health,Leicestershire Partnership NHS Trust,08/05/19,Landline Telephone Rental / Calls,Rushey Mead Health Centre (PROPCO),VIRGIN MEDIA BUSINESS,853083001/004/0419,77.46
Department of Health,Leicestershire Partnership NHS Trust,08/05/19,Landline Telephone Rental / Calls,"Shepshed Health Centre (P123, LPT)",VIRGIN MEDIA BUSINESS,853083001/004/0419,11.11
Department of Health,Leicestershire Partnership NHS Trust,08/05/19,Landline Telephone Rental / Calls,"Springfield Road Health Centre (P92, LPT)",VIRGIN MEDIA BUSINESS,853083001/004/0419,409.76
Department of Health,Leicestershire Partnership NHS Trust,08/05/19,Landline Telephone Rental / Calls,St Johns House (1st Floor) (PROPCO),VIRGIN MEDIA BUSINESS,853083001/004/0419,1522.95
Department of Health,Leicestershire Partnership NHS Trust,08/05/19,Landline Telephone Rental / Calls,St Peters Primary Care Centre (CHP),VIRGIN MEDIA BUSINESS,853083001/004/0419,2558.97
Department of Health,Leicestershire Partnership NHS Trust,08/05/19,Landline Telephone Rental / Calls,"Stewart House (P61, LPT)",VIRGIN MEDIA BUSINESS,853083001/004/0419,7.74
Department of Health,Leicestershire Partnership NHS Trust,08/05/19,Landline Telephone Rental / Calls,"Swithland House - London Road 352 (P44, LPT)",VIRGIN MEDIA BUSINESS,853083001/004/0419,372.53
Department of Health,Leicestershire Partnership NHS Trust,08/05/19,Landline Telephone Rental / Calls,"The Cedars (P19, LPT)",VIRGIN MEDIA BUSINESS,853083001/004/0419,627.90
Department of Health,Leicestershire Partnership NHS Trust,08/05/19,Landline Telephone Rental / Calls,"The Willows - Cordelia Close (P22, LPT)",VIRGIN MEDIA BUSINESS,853083001/004/0419,451.91
Department of Health,Leicestershire Partnership NHS Trust,08/05/19,Landline Telephone Rental / Calls,Uppingham Road Health Centre (PROPCO),VIRGIN MEDIA BUSINESS,853083001/004/0419,233.54
Department of Health,Leicestershire Partnership NHS Trust,08/05/19,Landline Telephone Rental / Calls,"Valentine Centre (P3, LPT)",VIRGIN MEDIA BUSINESS,853083001/004/0419,1974.06
Department of Health,Leicestershire Partnership NHS Trust,08/05/19,Landline Telephone Rental / Calls,Warren Park Way 25 (PROPCO),VIRGIN MEDIA BUSINESS,853083001/004/0419,1018.27
Department of Health,Leicestershire Partnership NHS Trust,08/05/19,Landline Telephone Rental / Calls,"Westcotes Group -Westcotes House (P78, LPT)",VIRGIN MEDIA BUSINESS,853083001/004/0419,1509.99
Department of Health,Leicestershire Partnership NHS Trust,08/05/19,Landline Telephone Rental / Calls,Westcotes Health Centre (CHP),VIRGIN MEDIA BUSINESS,853083001/004/0419,779.57
Department of Health,Leicestershire Partnership NHS Trust,08/05/19,Landline Telephone Rental / Calls,"Winstanley Drive Health Centre (P8, LPT)",VIRGIN MEDIA BUSINESS,853083001/004/0419,422.15
Department of Health,Leicestershire Partnership NHS Trust,13/05/19,Crs_NHS_LT1y -Resus Inventory Supplied.,Balance Sheet Collection,SUPPLY CHAIN CO LTD,1010027565,30089.00
Department of Health,Leicestershire Partnership NHS Trust,13/05/19,Non NHS ECRs,Out of County Income - Inpateints Project,CYGNET HC LTD,HAR0090444,42510.00
Department of Health,Leicestershire Partnership NHS Trust,13/05/19,Non NHS ECRs,Out of County Income - Inpateints Project,CYGNET HC LTD,BEC0090392,43312.50
Department of Health,Leicestershire Partnership NHS Trust,14/05/19,NURSE - BAND 2 - AGENCY,Beechwood Ward,HCL NURSING,MAN29826,441.66
Department of Health,Leicestershire Partnership NHS Trust,14/05/19,NURSE - BAND 5 - AGENCY,Beechwood Ward,HCL NURSING,MAN29826,33.00
Department of Health,Leicestershire Partnership NHS Trust,14/05/19,NURSE - BAND 5 - AGENCY,City ICS,HCL NURSING,MAN29826,3589.56
Department of Health,Leicestershire Partnership NHS Trust,14/05/19,NURSE - BAND 5 - AGENCY,City Planned Care - East,HCL NURSING,MAN29826,22279.05
Department of Health,Leicestershire Partnership NHS Trust,14/05/19,NURSE - BAND 5 - AGENCY,City Planned Care - West,HCL NURSING,MAN29826,6391.41
Department of Health,Leicestershire Partnership NHS Trust,14/05/19,Nurse - Band 6 -Agency,City West CMHT MHSOP,HCL NURSING,MAN29826,855.90
Department of Health,Leicestershire Partnership NHS Trust,14/05/19,NURSE - BAND 2 - AGENCY,Clarendon Ward,HCL NURSING,MAN29826,865.30
Department of Health,Leicestershire Partnership NHS Trust,14/05/19,NURSE - BAND 5 - AGENCY,Clarendon Ward,HCL NURSING,MAN29826,1086.78
Department of Health,Leicestershire Partnership NHS Trust,14/05/19,NURSE - BAND 2 - AGENCY,Coalville Ward 2,HCL NURSING,MAN29826,1179.01
Department of Health,Leicestershire Partnership NHS Trust,14/05/19,NURSE - BAND 2 - AGENCY,Coleman Ward,HCL NURSING,MAN29826,194.67
Department of Health,Leicestershire Partnership NHS Trust,14/05/19,NURSE - BAND 2 - AGENCY,Dalgliesh Ward,HCL NURSING,MAN29826,106.77
Department of Health,Leicestershire Partnership NHS Trust,14/05/19,NURSE - BAND 3 - AGENCY,East Planned Care - Blaby/Lutterworth,HCL NURSING,MAN29826,537.12
Department of Health,Leicestershire Partnership NHS Trust,14/05/19,NURSE - BAND 5 - AGENCY,Evening Service,HCL NURSING,MAN29826,1451.08
Department of Health,Leicestershire Partnership NHS Trust,14/05/19,NURSE - BAND 2 - AGENCY,Fielding Palmer Nursing,HCL NURSING,MAN29826,213.54
Department of Health,Leicestershire Partnership NHS Trust,14/05/19,NURSE - BAND 5 - AGENCY,Fielding Palmer Nursing,HCL NURSING,MAN29826,1609.18
Department of Health,Leicestershire Partnership NHS Trust,14/05/19,NURSE - BAND 2 - AGENCY,H&B Comm Hosp East Ward,HCL NURSING,MAN29826,1271.67
Department of Health,Leicestershire Partnership NHS Trust,14/05/19,NURSE - BAND 2 - AGENCY,H&B Comm Hosp North Ward,HCL NURSING,MAN29826,790.43
Department of Health,Leicestershire Partnership NHS Trust,14/05/19,NURSE - BAND 5 - AGENCY,H&B Comm Hosp North Ward,HCL NURSING,MAN29826,1366.39
Department of Health,Leicestershire Partnership NHS Trust,14/05/19,NURSE - BAND 2 - AGENCY,Kirby Ward,HCL NURSING,MAN29826,878.39
Department of Health,Leicestershire Partnership NHS Trust,14/05/19,NURSE - BAND 5 - AGENCY,Kirby Ward,HCL NURSING,MAN29826,326.24
Department of Health,Leicestershire Partnership NHS Trust,14/05/19,NURSE - BAND 2 - AGENCY,Lough Swithland Ward,HCL NURSING,MAN29826,211.93
Department of Health,Leicestershire Partnership NHS Trust,14/05/19,NURSE - BAND 5 - AGENCY,Lough Swithland Ward,HCL NURSING,MAN29826,2152.04
Department of Health,Leicestershire Partnership NHS Trust,14/05/19,Nurse - Band 6 -Agency,MHSOP Integrated Care Team,HCL NURSING,MAN29826,627.70
Department of Health,Leicestershire Partnership NHS Trust,14/05/19,NURSE - BAND 5 - AGENCY,North West ICS,HCL NURSING,MAN29826,1119.44
Department of Health,Leicestershire Partnership NHS Trust,14/05/19,NURSE - BAND 2 - AGENCY,Rutland Ward Nursing,HCL NURSING,MAN29826,168.41
Department of Health,Leicestershire Partnership NHS Trust,14/05/19,NURSE - BAND 5 - AGENCY,South East ICS,HCL NURSING,MAN29826,2555.10
Department of Health,Leicestershire Partnership NHS Trust,14/05/19,NURSE - BAND 2 - AGENCY,St Lukes Stroke Ward,HCL NURSING,MAN29826,448.07
Department of Health,Leicestershire Partnership NHS Trust,14/05/19,NURSE - BAND 5 - AGENCY,St Lukes Stroke Ward,HCL NURSING,MAN29826,514.90
Department of Health,Leicestershire Partnership NHS Trust,14/05/19,NURSE - BAND 5 - AGENCY,St Lukes Ward 3,HCL NURSING,MAN29826,2994.44
Department of Health,Leicestershire Partnership NHS Trust,14/05/19,NURSE - BAND 2 - AGENCY,Welford Ward,HCL NURSING,MAN29826,289.40
Department of Health,Leicestershire Partnership NHS Trust,14/05/19,NURSE - BAND 5 - AGENCY,Welford Ward,HCL NURSING,MAN29826,302.58
Department of Health,Leicestershire Partnership NHS Trust,14/05/19,NURSE - BAND 5 - AGENCY,West Planned Care  - Charnwood Hub,HCL NURSING,MAN29826,1752.81
Department of Health,Leicestershire Partnership NHS Trust,14/05/19,Network Costs - WAN Maint,HIS Infrastructure,VIRGIN MEDIA BUSINESS,262421-155,46565.94
Department of Health,Leicestershire Partnership NHS Trust,15/05/19,Water & Sewerage Charges,"Beaumont Leys Health Centre (P94, LPT)",WATER PLUS,0865005329/INV02421020,95.10
Department of Health,Leicestershire Partnership NHS Trust,15/05/19,Water & Sewerage Charges,Bridge Park Road (Unit C18) (LPT),WATER PLUS,0865005329/INV02421020,35.49
Department of Health,Leicestershire Partnership NHS Trust,15/05/19,Water & Sewerage Charges,"Bridge Park Road - Units 2 and 3 (P148, LPT)",WATER PLUS,0865005329/INV02421020,909.14
Department of Health,Leicestershire Partnership NHS Trust,15/05/19,Water & Sewerage Charges,"Coalville Community Hospital (P138, LPT)",WATER PLUS,0865005329/INV02421020,544.12
Department of Health,Leicestershire Partnership NHS Trust,15/05/19,Water & Sewerage Charges,"Coalville Health Centre (P121, LPT)",WATER PLUS,0865005329/INV02421020,230.34
Department of Health,Leicestershire Partnership NHS Trust,15/05/19,Water & Sewerage Charges,"Evington Centre (P6, LPT)",WATER PLUS,0865005329/INV02421020,1685.92
Department of Health,Leicestershire Partnership NHS Trust,15/05/19,Water & Sewerage Charges,"Feilding Palmer Hospital (Lutterworth) (P131, LPT)",WATER PLUS,0865005329/INV02421020,34.51
Department of Health,Leicestershire Partnership NHS Trust,15/05/19,Water & Sewerage Charges,HIS,WATER PLUS,0865005329/INV02421020,60.53
Department of Health,Leicestershire Partnership NHS Trust,15/05/19,Water & Sewerage Charges,Hinckley & District Hospital (PROPCO),WATER PLUS,0865005329/INV02421020,83.06
Department of Health,Leicestershire Partnership NHS Trust,15/05/19,Water & Sewerage Charges,"Hinckley and Bosworth Community Hospital (Sunnyside) (P133, LPT)",WATER PLUS,0865005329/INV02421020,1758.55
Department of Health,Leicestershire Partnership NHS Trust,15/05/19,Water & Sewerage Charges,"Hynca Lodge (P33, LPT)",WATER PLUS,0865005329/INV02421020,575.05
Department of Health,Leicestershire Partnership NHS Trust,15/05/19,Water & Sewerage Charges,"Loughborough Hospital (P136, LPT)",WATER PLUS,0865005329/INV02421020,11927.03
Department of Health,Leicestershire Partnership NHS Trust,15/05/19,Water & Sewerage Charges,"Narborough Health Centre (P117, LPT)",WATER PLUS,0865005329/INV02421020,2030.07
Department of Health,Leicestershire Partnership NHS Trust,15/05/19,Water & Sewerage Charges,"OSL House (P54, LPT)",WATER PLUS,0865005329/INV02421020,331.74
Department of Health,Leicestershire Partnership NHS Trust,15/05/19,Water & Sewerage Charges,"Orchard Resource Centre (P15, LPT)",WATER PLUS,0865005329/INV02421020,384.28
Department of Health,Leicestershire Partnership NHS Trust,15/05/19,Water & Sewerage Charges,"Paget House (P55, LPT)",WATER PLUS,0865005329/INV02421020,59.42
Department of Health,Leicestershire Partnership NHS Trust,15/05/19,Water & Sewerage Charges,"Prince Philip House (P96, LPT)",WATER PLUS,0865005329/INV02421020,203.76
Department of Health,Leicestershire Partnership NHS Trust,15/05/19,Water & Sewerage Charges,Rothesay -  London Road 352A (LPT),WATER PLUS,0865005329/INV02421020,501.18
Department of Health,Leicestershire Partnership NHS Trust,15/05/19,Water & Sewerage Charges,"Rubicon Close 3 (P56, LPT)",WATER PLUS,0865005329/INV02421020,93.69
Department of Health,Leicestershire Partnership NHS Trust,15/05/19,Water & Sewerage Charges,"Rutland Memorial Hospital (P134, LPT)",WATER PLUS,0865005329/INV02421020,387.21
Department of Health,Leicestershire Partnership NHS Trust,15/05/19,Water & Sewerage Charges,"Shepshed Health Centre (P123, LPT)",WATER PLUS,0865005329/INV02421020,258.19
Department of Health,Leicestershire Partnership NHS Trust,15/05/19,Water & Sewerage Charges,"Springfield Road Health Centre (P92, LPT)",WATER PLUS,0865005329/INV02421020,232.98
Department of Health,Leicestershire Partnership NHS Trust,15/05/19,Water & Sewerage Charges,"Stewart House (P61, LPT)",WATER PLUS,0865005329/INV02421020,849.33
Department of Health,Leicestershire Partnership NHS Trust,15/05/19,Water & Sewerage Charges,"Swithland House - London Road 352 (P44, LPT)",WATER PLUS,0865005329/INV02421020,106.47
Department of Health,Leicestershire Partnership NHS Trust,15/05/19,Water & Sewerage Charges,"The Agnes Unit (AKA Assessment and Treatment Centre) (P85, LPT)",WATER PLUS,0865005329/INV02421020,672.82
Department of Health,Leicestershire Partnership NHS Trust,15/05/19,Water & Sewerage Charges,"The Cedars (P19, LPT)",WATER PLUS,0865005329/INV02421020,68.13
Department of Health,Leicestershire Partnership NHS Trust,15/05/19,Water & Sewerage Charges,"The Grange 1 (P4, LPT)",WATER PLUS,0865005329/INV02421020,83.55
Department of Health,Leicestershire Partnership NHS Trust,15/05/19,Water & Sewerage Charges,"The Grange 2 (P41, LPT)",WATER PLUS,0865005329/INV02421020,81.01
Department of Health,Leicestershire Partnership NHS Trust,15/05/19,Water & Sewerage Charges,"The Willows - Cordelia Close (P22, LPT)",WATER PLUS,0865005329/INV02421020,1382.07
Department of Health,Leicestershire Partnership NHS Trust,15/05/19,Water & Sewerage Charges,"Westcotes Group - Tanglewood Resource Centre (P77, LPT)",WATER PLUS,0865005329/INV02421020,363.57
Department of Health,Leicestershire Partnership NHS Trust,15/05/19,Water & Sewerage Charges,"Westcotes Group -Westcotes House (P78, LPT)",WATER PLUS,0865005329/INV02421020,91.15
Department of Health,Leicestershire Partnership NHS Trust,16/05/19,Insurance Costs,Quality & Professional Practice,NHS LITIGATION AUTHORITY,SICX/00143611,83439.60
Department of Health,Leicestershire Partnership NHS Trust,16/05/19,Landline Telephone Rental / Calls,"Beaumont Leys Health Centre (P94, LPT)",VIRGIN MEDIA BUSINESS,853083001/004/0519,381.54
Department of Health,Leicestershire Partnership NHS Trust,16/05/19,Landline Telephone Rental / Calls,Belgrave Health Centre (CHP),VIRGIN MEDIA BUSINESS,853083001/004/0519,393.64
Department of Health,Leicestershire Partnership NHS Trust,16/05/19,Landline Telephone Rental / Calls,"Bennion Centre (including Forest Grange Day Unit) (P8, LPT)",VIRGIN MEDIA BUSINESS,853083001/004/0519,7.74
Department of Health,Leicestershire Partnership NHS Trust,16/05/19,Landline Telephone Rental / Calls,"Bradgate Unit (including Glenvale day Unit) (P7, LPT)",VIRGIN MEDIA BUSINESS,853083001/004/0519,7159.82
Department of Health,Leicestershire Partnership NHS Trust,16/05/19,Landline Telephone Rental / Calls,Braunstone Health and Social Care Centre (Part) (PROPCO),VIRGIN MEDIA BUSINESS,853083001/004/0519,1142.63
Department of Health,Leicestershire Partnership NHS Trust,16/05/19,Landline Telephone Rental / Calls,Bridge Park Plaza - First Floor (LPT),VIRGIN MEDIA BUSINESS,853083001/004/0519,3923.31
Department of Health,Leicestershire Partnership NHS Trust,16/05/19,Landline Telephone Rental / Calls,"Coalville Community Hospital (P138, LPT)",VIRGIN MEDIA BUSINESS,853083001/004/0519,1248.22
Department of Health,Leicestershire Partnership NHS Trust,16/05/19,Landline Telephone Rental / Calls,"Coalville Health Centre (P121, LPT)",VIRGIN MEDIA BUSINESS,853083001/004/0519,313.80
Department of Health,Leicestershire Partnership NHS Trust,16/05/19,Landline Telephone Rental / Calls,County Hall,VIRGIN MEDIA BUSINESS,853083001/004/0519,1341.43
Department of Health,Leicestershire Partnership NHS Trust,16/05/19,Landline Telephone Rental / Calls,Estates & Facilities Central,VIRGIN MEDIA BUSINESS,853083001/004/0519,4420.67
Department of Health,Leicestershire Partnership NHS Trust,16/05/19,Landline Telephone Rental / Calls,"Evington Centre (P6, LPT)",VIRGIN MEDIA BUSINESS,853083001/004/0519,1452.39
Department of Health,Leicestershire Partnership NHS Trust,16/05/19,Landline Telephone Rental / Calls,HIS,VIRGIN MEDIA BUSINESS,853083001/004/0519,2820.87
Department of Health,Leicestershire Partnership NHS Trust,16/05/19,Landline Telephone Rental / Calls,"Hawthorne Centre - Coalville (P14, LPT)",VIRGIN MEDIA BUSINESS,853083001/004/0519,474.92
Department of Health,Leicestershire Partnership NHS Trust,16/05/19,Landline Telephone Rental / Calls,Hinckley & District Hospital (PROPCO),VIRGIN MEDIA BUSINESS,853083001/004/0519,1297.34
Department of Health,Leicestershire Partnership NHS Trust,16/05/19,Landline Telephone Rental / Calls,"Hinckley and Bosworth Community Hospital (Sunnyside) (P133, LPT)",VIRGIN MEDIA BUSINESS,853083001/004/0519,1032.84
Department of Health,Leicestershire Partnership NHS Trust,16/05/19,Landline Telephone Rental / Calls,Hood Park Leisure Centre Clinic,VIRGIN MEDIA BUSINESS,853083001/004/0519,67.99
Department of Health,Leicestershire Partnership NHS Trust,16/05/19,Landline Telephone Rental / Calls,"Hynca Lodge (P33, LPT)",VIRGIN MEDIA BUSINESS,853083001/004/0519,339.96
Department of Health,Leicestershire Partnership NHS Trust,16/05/19,Landline Telephone Rental / Calls,"Legion House, Ashby",VIRGIN MEDIA BUSINESS,853083001/004/0519,55.31
Department of Health,Leicestershire Partnership NHS Trust,16/05/19,Landline Telephone Rental / Calls,Loughborough Health Centre (PROPCO),VIRGIN MEDIA BUSINESS,853083001/004/0519,7.99
Department of Health,Leicestershire Partnership NHS Trust,16/05/19,Landline Telephone Rental / Calls,"Loughborough Hospital (P136, LPT)",VIRGIN MEDIA BUSINESS,853083001/004/0519,4439.92
Department of Health,Leicestershire Partnership NHS Trust,16/05/19,Landline Telephone Rental / Calls,Mawson House (LPT),VIRGIN MEDIA BUSINESS,853083001/004/0519,457.16
Department of Health,Leicestershire Partnership NHS Trust,16/05/19,Landline Telephone Rental / Calls,Melbourne Centre (Pt Grnd flr) (PROPCO),VIRGIN MEDIA BUSINESS,853083001/004/0519,6.45
Department of Health,Leicestershire Partnership NHS Trust,16/05/19,Landline Telephone Rental / Calls,Melton Mowbray Hospital (previously St. Mary's) (PROPCO),VIRGIN MEDIA BUSINESS,853083001/004/0519,1601.42
Department of Health,Leicestershire Partnership NHS Trust,16/05/19,Landline Telephone Rental / Calls,Merlyn Vaz Centre (CHP),VIRGIN MEDIA BUSINESS,853083001/004/0519,2007.58
Department of Health,Leicestershire Partnership NHS Trust,16/05/19,Landline Telephone Rental / Calls,"Mett Centre (P49, LPT)",VIRGIN MEDIA BUSINESS,853083001/004/0519,90.50
Department of Health,Leicestershire Partnership NHS Trust,16/05/19,Landline Telephone Rental / Calls,NSPCC Training Cente,VIRGIN MEDIA BUSINESS,853083001/004/0519,172.97
Department of Health,Leicestershire Partnership NHS Trust,16/05/19,Landline Telephone Rental / Calls,New Parks Health Centre (PROPCO),VIRGIN MEDIA BUSINESS,853083001/004/0519,1727.32
Department of Health,Leicestershire Partnership NHS Trust,16/05/19,Landline Telephone Rental / Calls,"OSL House (P54, LPT)",VIRGIN MEDIA BUSINESS,853083001/004/0519,3177.01
Department of Health,Leicestershire Partnership NHS Trust,16/05/19,Landline Telephone Rental / Calls,"Orchard Resource Centre (P15, LPT)",VIRGIN MEDIA BUSINESS,853083001/004/0519,507.01
Department of Health,Leicestershire Partnership NHS Trust,16/05/19,Landline Telephone Rental / Calls,Pasley Road Health Centre (PROPCO),VIRGIN MEDIA BUSINESS,853083001/004/0519,248.21
Department of Health,Leicestershire Partnership NHS Trust,16/05/19,Landline Telephone Rental / Calls,"Prince Philip House (P96, LPT)",VIRGIN MEDIA BUSINESS,853083001/004/0519,1585.76
Department of Health,Leicestershire Partnership NHS Trust,16/05/19,Landline Telephone Rental / Calls,Rushey Mead Health Centre (PROPCO),VIRGIN MEDIA BUSINESS,853083001/004/0519,72.80
Department of Health,Leicestershire Partnership NHS Trust,16/05/19,Landline Telephone Rental / Calls,"Shepshed Health Centre (P123, LPT)",VIRGIN MEDIA BUSINESS,853083001/004/0519,9.77
Department of Health,Leicestershire Partnership NHS Trust,16/05/19,Landline Telephone Rental / Calls,"Springfield Road Health Centre (P92, LPT)",VIRGIN MEDIA BUSINESS,853083001/004/0519,393.24
Department of Health,Leicestershire Partnership NHS Trust,16/05/19,Landline Telephone Rental / Calls,St Johns House (1st Floor) (PROPCO),VIRGIN MEDIA BUSINESS,853083001/004/0519,1522.95
Department of Health,Leicestershire Partnership NHS Trust,16/05/19,Landline Telephone Rental / Calls,St Peters Primary Care Centre (CHP),VIRGIN MEDIA BUSINESS,853083001/004/0519,2382.50
Department of Health,Leicestershire Partnership NHS Trust,16/05/19,Landline Telephone Rental / Calls,"Stewart House (P61, LPT)",VIRGIN MEDIA BUSINESS,853083001/004/0519,7.74
Department of Health,Leicestershire Partnership NHS Trust,16/05/19,Landline Telephone Rental / Calls,"Swithland House - London Road 352 (P44, LPT)",VIRGIN MEDIA BUSINESS,853083001/004/0519,353.16
Department of Health,Leicestershire Partnership NHS Trust,16/05/19,Landline Telephone Rental / Calls,"The Cedars (P19, LPT)",VIRGIN MEDIA BUSINESS,853083001/004/0519,579.28
Department of Health,Leicestershire Partnership NHS Trust,16/05/19,Landline Telephone Rental / Calls,"The Willows - Cordelia Close (P22, LPT)",VIRGIN MEDIA BUSINESS,853083001/004/0519,440.31
Department of Health,Leicestershire Partnership NHS Trust,16/05/19,Landline Telephone Rental / Calls,Uppingham Road Health Centre (PROPCO),VIRGIN MEDIA BUSINESS,853083001/004/0519,235.51
Department of Health,Leicestershire Partnership NHS Trust,16/05/19,Landline Telephone Rental / Calls,"Valentine Centre (P3, LPT)",VIRGIN MEDIA BUSINESS,853083001/004/0519,1680.78
Department of Health,Leicestershire Partnership NHS Trust,16/05/19,Landline Telephone Rental / Calls,Warren Park Way 25 (PROPCO),VIRGIN MEDIA BUSINESS,853083001/004/0519,835.14
Department of Health,Leicestershire Partnership NHS Trust,16/05/19,Landline Telephone Rental / Calls,"Westcotes Group -Westcotes House (P78, LPT)",VIRGIN MEDIA BUSINESS,853083001/004/0519,1442.07
Department of Health,Leicestershire Partnership NHS Trust,16/05/19,Landline Telephone Rental / Calls,Westcotes Health Centre (CHP),VIRGIN MEDIA BUSINESS,853083001/004/0519,742.71
Department of Health,Leicestershire Partnership NHS Trust,16/05/19,Landline Telephone Rental / Calls,"Winstanley Drive Health Centre (P8, LPT)",VIRGIN MEDIA BUSINESS,853083001/004/0519,403.98
Department of Health,Leicestershire Partnership NHS Trust,16/05/19,UHL Facilities Management SLA,Estates Central Invoices To Recharge,UHL NHS TRUST (RWE),L0226818,827106.58
Department of Health,Leicestershire Partnership NHS Trust,20/05/19,Crs_NHS_LT1y -Resus Inventory Supplied.,Balance Sheet Collection,SUPPLY CHAIN CO LTD,1010034998,47289.22
Department of Health,Leicestershire Partnership NHS Trust,21/05/19,Payroll Deductions - Kiddi Vouchers,Balance Sheet Collection,WIDER PLAN LTD,5066255,41505.87
Department of Health,Leicestershire Partnership NHS Trust,22/05/19,CHP Estates Management,Belgrave Health Centre (CHP),COMM HLTH PARTNERSHIPS LTD,0060108207,9466.11
Department of Health,Leicestershire Partnership NHS Trust,22/05/19,CHP Estates Management,Merlyn Vaz Centre (CHP),COMM HLTH PARTNERSHIPS LTD,0060108207,57461.09
Department of Health,Leicestershire Partnership NHS Trust,22/05/19,CHP Estates Management,Westcotes Health Centre (CHP),COMM HLTH PARTNERSHIPS LTD,0060108207,12018.80
Department of Health,Leicestershire Partnership NHS Trust,22/05/19,CHP Estates Management,Belgrave Health Centre (CHP),COMM HLTH PARTNERSHIPS LTD,0060108208,9466.11
Department of Health,Leicestershire Partnership NHS Trust,22/05/19,CHP Estates Management,Merlyn Vaz Centre (CHP),COMM HLTH PARTNERSHIPS LTD,0060108208,57461.09
Department of Health,Leicestershire Partnership NHS Trust,22/05/19,CHP Estates Management,Westcotes Health Centre (CHP),COMM HLTH PARTNERSHIPS LTD,0060108208,12018.80
Department of Health,Leicestershire Partnership NHS Trust,22/05/19,NURSE - BAND 5 - AGENCY,Beechwood Ward,HCL NURSING,HNSI0000003,853.56
Department of Health,Leicestershire Partnership NHS Trust,22/05/19,NURSE - BAND 5 - AGENCY,City ICS,HCL NURSING,HNSI0000003,126.26
Department of Health,Leicestershire Partnership NHS Trust,22/05/19,NURSE - BAND 5 - AGENCY,City Planned Care - East,HCL NURSING,HNSI0000003,19005.95
Department of Health,Leicestershire Partnership NHS Trust,22/05/19,NURSE - BAND 5 - AGENCY,City Planned Care - West,HCL NURSING,HNSI0000003,5776.25
Department of Health,Leicestershire Partnership NHS Trust,22/05/19,Nurse - Band 6 -Agency,City West CMHT MHSOP,HCL NURSING,HNSI0000003,427.95
Department of Health,Leicestershire Partnership NHS Trust,22/05/19,NURSE - BAND 2 - AGENCY,Clarendon Ward,HCL NURSING,HNSI0000003,418.69
Department of Health,Leicestershire Partnership NHS Trust,22/05/19,NURSE - BAND 5 - AGENCY,Clarendon Ward,HCL NURSING,HNSI0000003,514.90
Department of Health,Leicestershire Partnership NHS Trust,22/05/19,NURSE - BAND 2 - AGENCY,Coalville Ward 2,HCL NURSING,HNSI0000003,1322.08
Department of Health,Leicestershire Partnership NHS Trust,22/05/19,NURSE - BAND 2 - AGENCY,Dalgliesh Ward,HCL NURSING,HNSI0000003,218.93
Department of Health,Leicestershire Partnership NHS Trust,22/05/19,NURSE - BAND 5 - AGENCY,Evening Service,HCL NURSING,HNSI0000003,332.60
Department of Health,Leicestershire Partnership NHS Trust,22/05/19,NURSE - BAND 5 - AGENCY,Fielding Palmer Nursing,HCL NURSING,HNSI0000003,1216.09
Department of Health,Leicestershire Partnership NHS Trust,22/05/19,NURSE - BAND 5 - AGENCY,Gwendolen Ward,HCL NURSING,HNSI0000003,312.72
Department of Health,Leicestershire Partnership NHS Trust,22/05/19,NURSE - BAND 2 - AGENCY,H&B Comm Hosp East Ward,HCL NURSING,HNSI0000003,1995.96
Department of Health,Leicestershire Partnership NHS Trust,22/05/19,NURSE - BAND 2 - AGENCY,H&B Comm Hosp North Ward,HCL NURSING,HNSI0000003,1263.57
Department of Health,Leicestershire Partnership NHS Trust,22/05/19,NURSE - BAND 2 - AGENCY,Kirby Ward,HCL NURSING,HNSI0000003,556.80
Department of Health,Leicestershire Partnership NHS Trust,22/05/19,NURSE - BAND 5 - AGENCY,Kirby Ward,HCL NURSING,HNSI0000003,312.72
Department of Health,Leicestershire Partnership NHS Trust,22/05/19,Nurse - Band 6 -Agency,MHSOP Integrated Care Team,HCL NURSING,HNSI0000003,884.32
Department of Health,Leicestershire Partnership NHS Trust,22/05/19,NURSE - BAND 5 - AGENCY,North West ICS,HCL NURSING,HNSI0000003,801.11
Department of Health,Leicestershire Partnership NHS Trust,22/05/19,NURSE - BAND 2 - AGENCY,Rutland Ward Nursing,HCL NURSING,HNSI0000003,168.41
Department of Health,Leicestershire Partnership NHS Trust,22/05/19,NURSE - BAND 5 - AGENCY,South East ICS,HCL NURSING,HNSI0000003,4155.50
Department of Health,Leicestershire Partnership NHS Trust,22/05/19,NURSE - BAND 2 - AGENCY,St Lukes Stroke Ward,HCL NURSING,HNSI0000003,289.98
Department of Health,Leicestershire Partnership NHS Trust,22/05/19,NURSE - BAND 5 - AGENCY,St Lukes Ward 3,HCL NURSING,HNSI0000003,1165.48
Department of Health,Leicestershire Partnership NHS Trust,22/05/19,NURSE - BAND 2 - AGENCY,Welford Ward,HCL NURSING,HNSI0000003,109.19
Department of Health,Leicestershire Partnership NHS Trust,22/05/19,NURSE - BAND 5 - AGENCY,Welford Ward,HCL NURSING,HNSI0000003,302.58
Department of Health,Leicestershire Partnership NHS Trust,22/05/19,NURSE - BAND 5 - AGENCY,West Planned Care  - Charnwood Hub,HCL NURSING,HNSI0000003,1838.51
Department of Health,Leicestershire Partnership NHS Trust,22/05/19,Leased / Hired Vehicles,Assertive Outreach Services,AUTOMOTIVE LEASING LTD,505229108,79.00
Department of Health,Leicestershire Partnership NHS Trust,22/05/19,Prep_ LT1y -Prepayments Lease Cars,Balance Sheet Collection,AUTOMOTIVE LEASING LTD,505229108,56837.45
Department of Health,Leicestershire Partnership NHS Trust,22/05/19,Trade_Drs_LT1y -Lease Cars Invoicing Contrl Ac.,Balance Sheet Collection,AUTOMOTIVE LEASING LTD,505229108,1738.97
Department of Health,Leicestershire Partnership NHS Trust,22/05/19,Leased / Hired Vehicles,CAMHS Young Peoples Team,AUTOMOTIVE LEASING LTD,505229108,533.68
Department of Health,Leicestershire Partnership NHS Trust,22/05/19,Leased / Hired Vehicles,City ICS,AUTOMOTIVE LEASING LTD,505229108,551.60
Department of Health,Leicestershire Partnership NHS Trust,22/05/19,Leased / Hired Vehicles,County 0-19  Market Harborough SN,AUTOMOTIVE LEASING LTD,505229108,210.92
Department of Health,Leicestershire Partnership NHS Trust,22/05/19,Leased / Hired Vehicles,Crisis Response and Home Treatment,AUTOMOTIVE LEASING LTD,505229108,170.00
Department of Health,Leicestershire Partnership NHS Trust,22/05/19,Leased / Hired Vehicles,"East Planned Care - Oadby,Wigston & Harborough",AUTOMOTIVE LEASING LTD,505229108,869.32
Department of Health,Leicestershire Partnership NHS Trust,22/05/19,Leased / Hired Vehicles,Evening Service,AUTOMOTIVE LEASING LTD,505229108,160.00
Department of Health,Leicestershire Partnership NHS Trust,22/05/19,Leased / Hired Vehicles,Medical Staffing - Adult City West,AUTOMOTIVE LEASING LTD,505229108,1465.40
Department of Health,Leicestershire Partnership NHS Trust,22/05/19,Leased / Hired Vehicles,Mill Lodge,AUTOMOTIVE LEASING LTD,505229108,1098.89
Department of Health,Leicestershire Partnership NHS Trust,22/05/19,Leased / Hired Vehicles,South East ICS,AUTOMOTIVE LEASING LTD,505229108,7.00
Department of Health,Leicestershire Partnership NHS Trust,22/05/19,Leased / Hired Vehicles,South Leicestershire CMHT MHSOP,AUTOMOTIVE LEASING LTD,505229108,10.00
Department of Health,Leicestershire Partnership NHS Trust,22/05/19,Leased / Hired Vehicles,Support Services (Learn Dis),AUTOMOTIVE LEASING LTD,505229108,1783.15
Department of Health,Leicestershire Partnership NHS Trust,22/05/19,Leased / Hired Vehicles,West Community Therapy,AUTOMOTIVE LEASING LTD,505229108,9.80
Department of Health,Leicestershire Partnership NHS Trust,22/05/19,Leased / Hired Vehicles,West Leicestershire CMHT MHSOP,AUTOMOTIVE LEASING LTD,505229108,186.24
Department of Health,Leicestershire Partnership NHS Trust,22/05/19,Leased / Hired Vehicles,West Planned Care  - Charnwood Hub,AUTOMOTIVE LEASING LTD,505229108,145.00
Department of Health,Leicestershire Partnership NHS Trust,22/05/19,Leased / Hired Vehicles,West Planned Care  - Hinckley Hub,AUTOMOTIVE LEASING LTD,505229108,39.75
Department of Health,Leicestershire Partnership NHS Trust,22/05/19,Leased / Hired Vehicles,West Planned Care - NWL Hub,AUTOMOTIVE LEASING LTD,505229108,10.00
Department of Health,Leicestershire Partnership NHS Trust,22/05/19,OCCUPATIONAL THERAPIST - AGENCY,Adult City West CMHT - BHSCC,MSI RECRUITMENT,MSIR050419,722.24
Department of Health,Leicestershire Partnership NHS Trust,22/05/19,Professional & Technical Agency,CAMHS CITY TEAM,MSI RECRUITMENT,MSIR050419,1281.89
Department of Health,Leicestershire Partnership NHS Trust,22/05/19,OCCUPATIONAL THERAPIST - AGENCY,Inpatient OT,MSI RECRUITMENT,MSIR050419,563.96
Department of Health,Leicestershire Partnership NHS Trust,22/05/19,PHYSIOTHERAPY - AGENCY,Learning Disabilities - Physiotherapy,MSI RECRUITMENT,MSIR050419,807.88
Department of Health,Leicestershire Partnership NHS Trust,22/05/19,PHYSIOTHERAPY - AGENCY,Mill Lodge,MSI RECRUITMENT,MSIR050419,1290.12
Department of Health,Leicestershire Partnership NHS Trust,22/05/19,OCCUPATIONAL THERAPIST - AGENCY,Non Recurrent 2012/13,MSI RECRUITMENT,MSIR050419,3678.12
Department of Health,Leicestershire Partnership NHS Trust,22/05/19,PHYSIOTHERAPY - AGENCY,Non Recurrent 2012/13,MSI RECRUITMENT,MSIR050419,18549.83
Department of Health,Leicestershire Partnership NHS Trust,22/05/19,PODIATRIST - AGENCY,Non Recurrent 2012/13,MSI RECRUITMENT,MSIR050419,516.05
Department of Health,Leicestershire Partnership NHS Trust,23/05/19,Internal Printing (machines and ink),Estates & Facilities Central,LEXMARK INTERNATIONAL LTD,900650006195,37850.51
Department of Health,Leicestershire Partnership NHS Trust,24/05/19,FP10'S,Adult City Central CMHT - St Peters,NHS BUS SERVICES AUTHORITY,1000059681,355.12
Department of Health,Leicestershire Partnership NHS Trust,24/05/19,FP10'S,Adult City Drugs,NHS BUS SERVICES AUTHORITY,1000059681,20364.65
Department of Health,Leicestershire Partnership NHS Trust,24/05/19,FP10'S,Adult County Drugs,NHS BUS SERVICES AUTHORITY,1000059681,28835.90
Department of Health,Leicestershire Partnership NHS Trust,24/05/19,FP10'S,CAMHS County Outpatients,NHS BUS SERVICES AUTHORITY,1000059681,13231.08
Department of Health,Leicestershire Partnership NHS Trust,24/05/19,FP10'S,Children Services Medical,NHS BUS SERVICES AUTHORITY,1000059681,5733.83
Department of Health,Leicestershire Partnership NHS Trust,24/05/19,FP10'S,Dalgliesh Ward,NHS BUS SERVICES AUTHORITY,1000059681,220.45
Department of Health,Leicestershire Partnership NHS Trust,24/05/19,FP10'S,Dementia Related Drugs and Investigations,NHS BUS SERVICES AUTHORITY,1000059681,3910.80
Department of Health,Leicestershire Partnership NHS Trust,24/05/19,FP10'S,Eating Disorders Outpatient Service,NHS BUS SERVICES AUTHORITY,1000059681,176.94
Department of Health,Leicestershire Partnership NHS Trust,24/05/19,FP10'S,Forensic Services - Community,NHS BUS SERVICES AUTHORITY,1000059681,16.88
Department of Health,Leicestershire Partnership NHS Trust,24/05/19,FP10'S,Leicestershire Psych-oncology Service,NHS BUS SERVICES AUTHORITY,1000059681,1089.93
Department of Health,Leicestershire Partnership NHS Trust,24/05/19,FP10'S,Lough Swithland Ward,NHS BUS SERVICES AUTHORITY,1000059681,59.65
Department of Health,Leicestershire Partnership NHS Trust,24/05/19,FP10'S,PIER Team - Early Intervention Services,NHS BUS SERVICES AUTHORITY,1000059681,17618.27
Department of Health,Leicestershire Partnership NHS Trust,24/05/19,FP10'S,Pharmacy,NHS BUS SERVICES AUTHORITY,1000059681,2056.61
Department of Health,Leicestershire Partnership NHS Trust,24/05/19,FP10'S,Snr Med Staff (Inc Med Reps),NHS BUS SERVICES AUTHORITY,1000059681,3485.05
Department of Health,Leicestershire Partnership NHS Trust,24/05/19,Rent,"OSL House (P54, LPT)",CABOT TRUSTEES LTD,055,41700.00
Department of Health,Leicestershire Partnership NHS Trust,28/05/19,NURSE - BAND 2 - AGENCY,Acacia (Willows),HCL NURSING,HNSI0000001,174.83
Department of Health,Leicestershire Partnership NHS Trust,28/05/19,Nurse - Band 6 -Agency,Adult City East CMHT - Merlyn Vaz,HCL NURSING,HNSI0000001,2355.83
Department of Health,Leicestershire Partnership NHS Trust,28/05/19,Nurse - Band 6 -Agency,Adult County Charnwood CMHT - Loughborough Base,HCL NURSING,HNSI0000001,1069.88
Department of Health,Leicestershire Partnership NHS Trust,28/05/19,Nurse - Band 6 -Agency,Adult County North West Leicestershire CMHT,HCL NURSING,HNSI0000001,427.95
Department of Health,Leicestershire Partnership NHS Trust,28/05/19,Nurse - Band 6 -Agency,Adult County West Leicestershire CMHT,HCL NURSING,HNSI0000001,1683.53
Department of Health,Leicestershire Partnership NHS Trust,28/05/19,NURSE - BAND 2 - AGENCY,Agnes Unit Management,HCL NURSING,HNSI0000001,3203.19
Department of Health,Leicestershire Partnership NHS Trust,28/05/19,NURSE - BAND 5 - AGENCY,Agnes Unit Management,HCL NURSING,HNSI0000001,1236.92
Department of Health,Leicestershire Partnership NHS Trust,28/05/19,NURSE - BAND 2 - AGENCY,Aston Ward (Bradgate Unit),HCL NURSING,HNSI0000001,560.42
Department of Health,Leicestershire Partnership NHS Trust,28/05/19,NURSE - BAND 5 - AGENCY,Aston Ward (Bradgate Unit),HCL NURSING,HNSI0000001,329.81
Department of Health,Leicestershire Partnership NHS Trust,28/05/19,NURSE - BAND 2 - AGENCY,Beaumont Ward - Bradgate Unit,HCL NURSING,HNSI0000001,338.93
Department of Health,Leicestershire Partnership NHS Trust,28/05/19,NURSE - BAND 5 - AGENCY,Beaumont Ward - Bradgate Unit,HCL NURSING,HNSI0000001,1848.44
Department of Health,Leicestershire Partnership NHS Trust,28/05/19,NURSE - BAND 2 - AGENCY,Belvoir Psychiatric Intensive Care Unit,HCL NURSING,HNSI0000001,1277.59
Department of Health,Leicestershire Partnership NHS Trust,28/05/19,NURSE - BAND 5 - AGENCY,Belvoir Psychiatric Intensive Care Unit,HCL NURSING,HNSI0000001,1382.33
Department of Health,Leicestershire Partnership NHS Trust,28/05/19,NURSE - BAND 2 - AGENCY,Bosworth Ward - Bradgate Unit,HCL NURSING,HNSI0000001,505.23
Department of Health,Leicestershire Partnership NHS Trust,28/05/19,Nurse - Band 6 -Agency,Crisis Resolution,HCL NURSING,HNSI0000001,2876.95
Department of Health,Leicestershire Partnership NHS Trust,28/05/19,NURSE - BAND 2 - AGENCY,Griffin Ward (HPC),HCL NURSING,HNSI0000001,109.19
Department of Health,Leicestershire Partnership NHS Trust,28/05/19,NURSE - BAND 5 - AGENCY,Griffin Ward (HPC),HCL NURSING,HNSI0000001,3778.89
Department of Health,Leicestershire Partnership NHS Trust,28/05/19,NURSE - BAND 5 - AGENCY,Heather Ward,HCL NURSING,HNSI0000001,392.89
Department of Health,Leicestershire Partnership NHS Trust,28/05/19,Nurse - Band 6 -Agency,Mental Health Triage Team,HCL NURSING,HNSI0000001,2211.17
Department of Health,Leicestershire Partnership NHS Trust,28/05/19,NURSE - BAND 2 - AGENCY,Mill Lodge,HCL NURSING,HNSI0000001,1024.85
Department of Health,Leicestershire Partnership NHS Trust,28/05/19,NURSE - BAND 5 - AGENCY,Mill Lodge,HCL NURSING,HNSI0000001,274.96
Department of Health,Leicestershire Partnership NHS Trust,28/05/19,NURSE - BAND 2 - AGENCY,Stewart House,HCL NURSING,HNSI0000001,144.97
Department of Health,Leicestershire Partnership NHS Trust,28/05/19,NURSE - BAND 2 - AGENCY,Thornton Ward - Bradgate Unit,HCL NURSING,HNSI0000001,446.36
Department of Health,Leicestershire Partnership NHS Trust,28/05/19,NURSE - BAND 2 - AGENCY,Watermead Ward (Bradgate Unit),HCL NURSING,HNSI0000001,552.66
Department of Health,Leicestershire Partnership NHS Trust,28/05/19,NURSE - BAND 5 - AGENCY,Watermead Ward (Bradgate Unit),HCL NURSING,HNSI0000001,1149.39
Department of Health,Leicestershire Partnership NHS Trust,28/05/19,Computer Software,Learning & Develpoment,KALLIDUS LTD,10319,27000.00
Department of Health,Leicestershire Partnership NHS Trust,28/05/19,Crs_NHS_LT1y -Resus Inventory Supplied.,Balance Sheet Collection,SUPPLY CHAIN CO LTD,1010039427,39761.76
Department of Health,Leicestershire Partnership NHS Trust,28/05/19,Contract : Accomodation,Out of County Income - Inpateints Project,TURNING POINT,SI-TPS-00022906,47507.58
Department of Health,Leicestershire Partnership NHS Trust,28/05/19,Med GP Trainees,Medical Trainees,ST.HELENS & KNOWSLEY NHS TRUST,16785180,60000.00
Department of Health,Leicestershire Partnership NHS Trust,28/05/19,Med Trainees - FY1,Medical Trainees,UHL NHS TRUST (RWE),L0227142,26290.87
Department of Health,Leicestershire Partnership NHS Trust,29/05/19,Rent,"St Peters Health Center (Part 1st and 2nd floors) (P66, LPT)",LEICESTER LIFT CO,LEP1/S0310,26775.80
